[Event "21st Bangkok CC Open 2024"]
[Site "Bangkok"]
[Date "2024.04.15"]
[Round "3.2"]
[White "Pranesh M"]
[Black "Ritviz, Parab"]
[Result "1/2-1/2"]
[ECO "B28"]
[WhiteElo "2538"]
[BlackElo "2346"]
[Annotator "TA"]
[PlyCount "62"]
[EventDate "2024.04.13"]
[EventType "swiss"]
[EventCountry "THA"]
[SourceTitle "playchess.com"]
[Source "ChessBase"]
[SourceQuality "1"]
[TimeControl "40/5400+30:1800+30"]

{[%evp 12,62,19,22,28,29,41,36,29,45,31,25,27,41,33,35,42,52,43,40,35,39,42,0,0,0,0,0,13,19,76,67,73,47,42,44,21,0,0,0,0,0,0,0,0,-7,0,0,0,0,0,0,0]} 1. e4 {[%emt 0:00:15]} c5 {[%emt 0:16:35]} 2. Nf3 {[%emt 0:00:08]} a6 {[%emt 0:00:10]} 3. c4 {[%emt 0:00:08]} Nc6 {[%emt 0:00:17]} 4. d4 {[%emt 0:00:12]} cxd4 {[%emt 0:00:06]} 5. Nxd4 {[%emt 0:00:03]} Nf6 {[%emt 0:00:18]} 6. Nc3 {[%emt 0:00:15]} e5 {[%emt 0:00:38]} 7. Nf5 {[%emt 0:01:33]} d5 {[%emt 0:02:17]} 8. cxd5 {[%emt 0:00:31]} (8. Nxd5 Nxd5 (8... Nxe4 9. Nfe3 $17) 9. cxd5 Bxf5 10. exf5 Bb4+ 11. Bd2 Qxd5 12. Bxb4 Qe4+ (12... Nxb4 13. Qxd5 Nxd5 14. O-O-O $11) 13. Be2 Qxb4+ (13... Nxb4 14. O-O $11) 14. Qd2 Qxd2+ 15. Kxd2 Ke7 $15) 8... Nxe4 {[%emt 0:00:10]} 9. Nxg7+ {[%emt 0:14:26]} (9. Nxe4 Bxf5 10. Ng3 Nd4 11. Nxf5 Bb4+ 12. Bd2 Bxd2+ 13. Qxd2 Nxf5 $15) 9... Bxg7 {[%emt 0:00:07] White is slightly better.} 10. Nxe4 {[%emt 0:00:08]} Nd4 {[%emt 0:00:16]} 11. Nc3 {[%emt 0:04:13]} O-O {[%emt 0:00:32]} 12. Bd3 {[%emt 0:01:22]} f5 {[%emt 0:00:11][%cal Bf7f5,Bf5f4][%mdl 32]} 13. Be3 {[%emt 0:04:14]} f4 {[%emt 0:25:03]} 14. Bxd4 {[%emt 0:04:17]} exd4 {[%emt 0:00:06] [#]} 15. Qh5 $1 {[%emt 0:04:23]} h6 {[%emt 0:15:32]} (15... dxc3 16. Bxh7+ Kh8 17. Bg6+) 16. Ne4 {[%emt 0:02:50]} Qa5+ $1 {[%emt 0:07:01]} 17. Ke2 {[%emt 0:01:03]} Bf5 {[%emt 0:02:22][%cal Oa8e8] White must now prevent ...Rae8!} 18. f3 {[%emt 0:02:38]} Rae8 {[%emt 0:16:09]} 19. Rhc1 {[%emt 0:01:59]} Re5 {[%emt 0:01:38][%cal Of5e4]} (19... Qxd5 $2 20. Bc4 $18) 20. Qh4 $1 {[%emt 0:00:13]} Kh8 {[%emt 0:00:10]} (20... Qxd5 $2 21. Bc4 $18) (20... Bxe4 $1 $11 21. fxe4 Rg5) 21. Kf1 $16 {[%emt 0:04:29]} Qxd5 {[%emt 0:05:01][%cal Rf5e4]} 22. Qf2 {[%emt 0:06:16] White is more active.} Bxe4 {[%emt 0:04:39]} 23. Bxe4 {[%emt 0:03:37]} Qb5+ {[%emt 0:00:48]} 24. Qe2 {[%emt 0:00:46] The position is equal.} (24. Kg1 {looks sharper.} d3 25. Rc7 Qa4 26. Kf1) 24... Qxe2+ {[%emt 0:01:45]} 25. Kxe2 {[%emt 0:00:03]} d3+ {[%emt 0:00:03]} 26. Kxd3 {[%emt 0:01:09][%cal Oc1c2]} Rg5 {[%emt 0:00:02][%csl LRb2,LRg2]} 27. Rab1 {[%emt 0:05:26]} (27. Bxb7 $2 {perishes.} Rd8+ (27... Rxg2 28. Rc8 $11) (27... Bxb2 $2 28. Rd1 $19) 28. Ke2 (28. Kc4 $2 Rd4+ 29. Kb3 Rb5+ 30. Kc2 Rxb7 $19) 28... Bxb2 $19 (28... Rxg2+ $2 29. Kf1 $19)) 27... Rd8+ {[%emt 0:00:47]} 28. Kc4 {[%emt 0:00:20]} Rd4+ {[%emt 0:01:03]} 29. Kb3 {[%emt 0:00:04] [#] Rc8+ is the strong threat.} Rb5+ {[%emt 0:00:10]} 30. Kc2 $1 {[%emt 0:00:03][%cal Ob2b4]} Rc5+ {[%emt 0:00:39]} 31. Kb3 {[%emt 0:00:02]} Rb5+ {[%emt 0:00:09] Weighted Error Value: White=0.05 (flawless) /Black=0.06 (flawless) .  Mistake:       	---       	Black=1      Inaccurate:     	White=2     	---        OK:         	White=10    	Black=13     Best:        	White=2     	Black=3      Strong:       	White=3     	Black=1} 1/2-1/2

[Event "21st Bangkok CC Open 2024"]
[Site "Bangkok"]
[Date "2024.04.15"]
[Round "3.3"]
[White "Peng, Xiongjian"]
[Black "Subhayan Kundu"]
[Result "0-1"]
[ECO "E11"]
[WhiteElo "2521"]
[BlackElo "2341"]
[Annotator "TA"]
[PlyCount "100"]
[EventDate "2024.04.13"]
[EventType "swiss"]
[EventCountry "THA"]
[SourceTitle "playchess.com"]
[Source "ChessBase"]
[SourceQuality "1"]
[TimeControl "40/5400+30:1800+30"]

{[%evp 10,100,13,12,11,8,12,13,19,17,17,14,12,-11,0,-75,-73,-91,-90,-116,-77,-85,-67,-95,-72,-83,-82,-78,-85,-93,-78,-89,-65,-63,-70,-70,-84,-102,-100,-83,-78,-108,-116,-104,-95,-98,-14,-121,-119,-123,-122,-122,-118,-183,-134,-177,-174,-204,-182,-231,-224,-243,-240,-221,-242,-430,-416,-579,-410,-518,-378,-366,-382,-382,-359,-352,-339,-377,-377,-377,-369,-387,-323,-1114,-980,-29981,-29982,-29982,-29983,-29983,-29984,-29980,-29981]} 1. d4 {[%emt 1:31:00]} Nf6 {[%emt 0:05:55]} 2. Nf3 {[%emt 0:00:00]} e6 {[%emt 0:01:19]} 3. c4 {[%emt 0:00:00]} Bb4+ {[%emt 0:00:41]} 4. Bd2 {[%emt 0:00:00]} Qe7 {[%emt 0:00:16]} 5. e3 {[%emt 0:00:00]} b6 {[%emt 0:03:16]} 6. Nc3 {[%emt 0:00:00]} Bxc3 {[%emt 0:03:21]} 7. Bxc3 {[%emt 0:00:00]} Ne4 {[%emt 0:00:16]} 8. Rc1 {[%emt 0:00:00]} Bb7 {[%emt 0:02:26] The position is equal.} 9. Bd3 {[%emt 0:00:00]} d6 {[%emt 0:07:18]} 10. Bxe4 {[%emt 0:00:00]} Bxe4 {[%emt 0:00:07]} 11. d5 {[%emt 0:00:00]} Nd7 {[%emt 0:09:42]} 12. Nd2 {[%emt 0:00:00]} (12. Bxg7 $2 {perishes.} Rg8 13. Bc3 exd5 $19 (13... Rxg2 14. Nd2 $19)) (12. O-O $11 {keeps the balance.}) 12... exd5 $17 {[%emt 0:02:13]} (12... Bxg2 $2 13. Rg1 $18) 13. Qg4 {[%emt 0:00:00]} (13. Bxg7 $2 {too greedy.} Rg8 14. Nxe4 Qxe4 $19) 13... f6 {[%emt 0:21:55]} 14. O-O {[%emt 0:00:00]} O-O {[%emt 0:02:57]} 15. b4 {[%emt 0:00:00]} a5 {[%emt 0:10:37]} 16. a3 {[%emt 0:00:00]} axb4 {[%emt 0:00:10]} 17. axb4 {[%emt 0:00:00]} Bd3 {[%emt 0:02:52]} 18. Rfd1 {[%emt 0:00:00]} dxc4 {[%emt 0:01:13]} 19. Nxc4 {[%emt 0:00:00]} Bg6 {[%emt 0:00:05]} 20. Qd4 {[%emt 0:00:00]} Qe4 {[%emt 0:02:20]} 21. Qxe4 {[%emt 0:00:00]} Bxe4 {[%emt 0:00:01]} 22. f3 {[%emt 0:00:00]} Bf5 {[%emt 0:00:43]} 23. e4 {[%emt 0:00:00]} Be6 {[%emt 0:00:04]} 24. Ne3 {[%emt 0:00:00]} Ra7 {[%emt 0:02:37]} 25. Bd4 {[%emt 0:00:00]} Kf7 {[%emt 0:01:48]} 26. f4 {[%emt 0:00:00]} Ke7 {[%emt 0:01:32]} 27. Nd5+ {[%emt 0:00:00]} Kd8 {[%emt 0:02:55]} ({Black should try} 27... Bxd5 $17 28. exd5 Re8) 28. Ra1 {[%emt 0:00:00]} (28. Nc3 $11) 28... Rxa1 {[%emt 0:00:07] White is on the road to losing.} 29. Rxa1 {[%emt 0:00:00]} Kc8 {[%emt 0:03:18]} 30. Kf2 {[%emt 0:00:00]} Kb7 {[%emt 0:00:27]} 31. f5 {[%emt 0:00:00]} (31. Ne3 $17) 31... Bf7 {[%emt 0:00:58]} (31... Bxd5 $19 32. exd5 Re8) 32. Nf4 {[%emt 0:00:00]} Re8 {[%emt 0:00:21]} 33. Kf3 {[%emt 0:00:00]} c5 {[%emt 0:00:37]} 34. bxc5 {[%emt 0:00:00]} (34. Bc3 {was worth a try.}) 34... dxc5 $19 {[%emt 0:00:03]} 35. Bb2 {[%emt 0:00:00]} b5 {[%emt 0:00:40]} 36. g4 {[%emt 0:00:00]} c4 {[%emt 0:01:09]} 37. g5 $2 {[%emt 0:07:06] [#]} (37. Bc3) 37... fxg5 {[%emt 0:00:53]} 38. Rg1 {[%emt 0:00:18]} h6 {[%emt 0:01:42]} 39. h4 {[%emt 0:01:15]} b4 {[%emt 0:07:02]} (39... gxh4 40. Rxg7 Rf8 41. e5 $18) 40. hxg5 {[%emt 0:00:10]} hxg5 {[%emt 0:00:23]} 41. Rxg5 {[%emt 0:31:37]} c3 {[%emt 0:32:18]} 42. Ba1 {[%emt 0:00:39]} Ne5+ {[%emt 0:00:00]} 43. Ke3 {[%emt 0:00:00]} Ra8 {[%emt 0:00:00]} 44. Rg1 {[%emt 0:00:00]} Kb6 {[%emt 0:00:00]} 45. Nd3 {[%emt 0:00:00]} Nxd3 {[%emt 0:00:00]} 46. Kxd3 {[%emt 0:00:00]} (46. Bxc3 bxc3 47. Kxd3) 46... Kc5 {[%emt 0:00:00] aiming for ...Bc4+.} 47. e5 {[%emt 0:00:00]} Bc4+ {[%emt 0:00:00] Black mates.} 48. Ke3 {[%emt 0:00:00] [#]} Rxa1 $1 {[%emt 0:00:00][%mdl 512]} 49. Rxa1 {[%emt 0:00:00]} b3 {[%emt 0:00:00]} 50. Ra5+ {[%emt 0:00:00]} Kb4 {[%emt 0:00:00] Weighted Error Value: White=0.47/Black=0.16 (very precise) .  Mistake:       	White=6     	Black=2      Inaccurate:     	White=5     	Black=1      OK:         	White=11    	Black=19     Best:        	White=2     	Black=5} 0-1

[Event "21st Bangkok CC Open 2024"]
[Site "Bangkok"]
[Date "2024.04.15"]
[Round "3.4"]
[White "Xie, Felix"]
[Black "Makhnev, Denis"]
[Result "1/2-1/2"]
[ECO "E11"]
[WhiteElo "2291"]
[BlackElo "2516"]
[Annotator "TA"]
[PlyCount "66"]
[EventDate "2024.04.13"]
[EventType "swiss"]
[EventCountry "THA"]
[SourceTitle "playchess.com"]
[Source "ChessBase"]
[SourceQuality "1"]
[TimeControl "40/5400+30:1800+30"]

{[%evp 13,66,14,10,0,30,20,25,12,26,16,21,14,30,23,38,52,51,27,22,0,3,-24,-32,-25,-23,-22,0,-21,-13,-39,-41,-53,13,4,0,0,25,-17,-27,-23,-35,-22,0,0,58,65,63,63,64,0,0,0,0,0,0]} 1. d4 {[%emt 0:00:50]} Nf6 {[%emt 0:04:19]} 2. c4 {[%emt 0:02:32]} e6 {[%emt 0:00:07]} 3. Nf3 {[%emt 0:00:12]} d5 {[%emt 0:00:16]} 4. g3 {[%emt 0:00:11]} Bb4+ {[%emt 0:00:20]} 5. Bd2 {[%emt 0:00:09]} Be7 {[%emt 0:00:07]} 6. Bg2 {[%emt 0:00:16]} O-O {[%emt 0:00:10]} 7. O-O {[%emt 0:00:22]} Nbd7 {[%emt 0:00:06]} 8. Qc2 {[%emt 0:00:52]} Ne4 {[%emt 0:00:09]} 9. Nc3 {[%emt 0:01:07]} Nxd2 {[%emt 0:05:07]} 10. Nxd2 {[%emt 0:00:07] White has an edge.} c6 {[%emt 0:00:09]} 11. e3 {[%emt 0:00:04]} a5 {[%emt 0:06:08]} 12. a3 {[%emt 0:01:32]} f5 {[%emt 0:28:16]} 13. Rab1 {[%emt 0:11:13]} Nf6 {[%emt 0:05:42]} 14. Nf3 {[%emt 0:04:16]} Ne4 {[%emt 0:09:21]} 15. b4 {[%emt 0:08:27]} Nd6 {[%emt 0:00:57]} 16. cxd5 {[%emt 0:16:24]} cxd5 {[%emt 0:05:53]} 17. Nd2 {[%emt 0:05:38]} axb4 {[%emt 0:01:22]} 18. axb4 {[%emt 0:00:09]} Bd7 {[%emt 0:00:06]} 19. Rfc1 {[%emt 0:06:38]} Kh8 {[%emt 0:02:02]} 20. b5 {[%emt 0:05:22]} g5 {[%emt 0:04:58]} 21. Bf1 {[%emt 0:02:08]} f4 {[%emt 0:04:14]} 22. e4 {[%emt 0:03:32]} Rc8 {[%emt 0:00:08]} ({Better is} 22... g4 $15) 23. Qb2 $11 {[%emt 0:05:48]} fxg3 {[%emt 0:05:06]} 24. hxg3 {[%emt 0:00:20]} Qe8 $1 {[%emt 0:06:32]} 25. exd5 {[%emt 0:07:08]} Qf7 {[%emt 0:02:50]} 26. Nb3 $1 {[%emt 0:06:18]} exd5 {[%emt 0:01:11] Threatens to win with ...Bg4.} 27. Bg2 $1 {[%emt 0:01:35]} Nxb5 {[%emt 0:04:46]} (27... Bf5 {looks sharper.} 28. Bxd5 Qh5 29. Re1 Bxb1 30. Rxe7 Bf5) 28. Bxd5 {[%emt 0:02:11]} Qf6 {[%emt 0:00:11]} ({Black should play} 28... Qf5 $11 29. Be4 Qg4 30. Nxb5 Rxc1+ (30... Qxe4 31. Nc5 $16) 31. Rxc1 Qxe4 (31... Bxb5 32. Nc5 $16)) 29. Nxb5 $14 {[%emt 0:01:00]} (29. Bxb7 $2 {loses.} Rxc3 30. Rxc3 Nxc3 $19) 29... Bxb5 {[%emt 0:00:05] A strong pair of Bishops.} 30. Rxc8 {[%emt 0:00:38]} ({Don't play} 30. Bxb7 Rb8 31. Be4 Ba3 $11) 30... Rxc8 {[%emt 0:00:04]} 31. Nc5 {[%emt 0:01:47]} ({White should try} 31. Bxb7 $14 Rb8 32. Be4) 31... Bxc5 $11 {[%emt 0:00:54] The position is equal.} 32. dxc5 {[%emt 0:00:13]} Qxb2 {[%emt 0:00:05]} 33. Rxb2 {[%emt 0:00:03]} Rxc5 {[%emt 0:00:07] Weighted Error Value: White=0.12 (very precise) /Black=0.14 (very precise) .  Mistake:       	White=1     	Black=2      Inaccurate:     	White=3     	Black=1      OK:         	White=3     	Black=9      Best:        	White=3     	Black=1      Strong:       	White=2     	Black=1} 1/2-1/2

[Event "21st Bangkok CC Open 2024"]
[Site "Bangkok"]
[Date "2024.04.15"]
[Round "3.5"]
[White "Manon, Reja Neer"]
[Black "Lalit Babu M R"]
[Result "1-0"]
[ECO "C78"]
[WhiteElo "2285"]
[BlackElo "2508"]
[Annotator "TA"]
[PlyCount "139"]
[EventDate "2024.04.13"]
[EventType "swiss"]
[EventCountry "THA"]
[SourceTitle "playchess.com"]
[Source "ChessBase"]
[SourceQuality "1"]
[TimeControl "40/5400+30:1800+30"]

{[%evp 26,139,7,0,45,40,46,61,56,39,43,29,29,27,42,48,95,96,101,102,136,151,147,132,105,22,30,0,112,116,144,164,168,168,132,100,93,80,134,137,195,187,225,233,249,185,253,246,250,8,9,0,247,262,275,182,152,0,251,214,195,195,213,188,285,279,303,314,320,304,326,304,381,415,396,403,398,380,530,488,239,39,295,295,668,596,588,16,16,8,8,8,8,8,4582,178,29955,12425,29963,29965,29965,29968,29968,29969,29969,29969,29970,29971,29971,29972,29973,29974,29977,29979,29983,29984]} 1. e4 {[%emt 0:00:04]} e5 {[%emt 0:02:12]} 2. Nf3 {[%emt 0:00:06]} Nc6 {[%emt 0:00:06]} 3. Bb5 {[%emt 0:00:03]} a6 {[%emt 0:00:05]} 4. Ba4 {[%emt 0:00:02]} Nf6 {[%emt 0:00:06]} 5. O-O {[%emt 0:01:34]} Bc5 {[%emt 0:00:10]} 6. c3 {[%emt 0:06:44]} b5 {[%emt 0:00:06]} 7. Bb3 {[%emt 0:02:55]} d6 {[%emt 0:00:07]} 8. d4 {[%emt 0:09:46]} Bb6 {[%emt 0:00:37]} 9. dxe5 {[%emt 0:19:15]} Nxe5 {[%emt 0:04:35]} 10. Nxe5 {[%emt 0:02:48]} dxe5 {[%emt 0:00:05]} 11. Qxd8+ {[%emt 0:01:48]} Kxd8 {[%emt 0:00:07]} 12. Bxf7 {[%emt 0:51:25]} Bb7 {[%emt 0:22:10]} 13. Bg5 {[%emt 0:00:00]} Rf8 {[%emt 0:25:44]} 14. Bd5 {[%emt 0:00:00]} Bxd5 {[%emt 0:00:11]} 15. exd5 {[%emt 0:00:00]} Kd7 {[%emt 0:00:03]} 16. Bxf6 $1 {[%emt 0:00:00]} gxf6 {[%emt 0:00:05]} 17. Na3 {[%emt 0:00:00]} f5 {[%emt 0:00:30]} 18. Rfe1 {[%emt 0:00:00]} Kd6 {[%emt 0:04:38]} 19. Rad1 {[%emt 0:00:00]} e4 {[%emt 0:00:12]} 20. Kf1 {[%emt 0:00:00]} Rae8 {[%emt 0:38:41]} (20... Rad8 $14 {feels stronger.}) 21. b4 $1 $16 {[%emt 0:00:00]} Kd7 {[%emt 0:00:00]} 22. c4 {[%emt 0:00:00]} bxc4 {[%emt 0:00:00]} 23. Nxc4 {[%emt 0:00:00]} Ba7 {[%emt 0:00:00]} 24. f4 {[%emt 0:00:20]} exf3 {[%emt 0:00:00]} 25. Ne5+ {[%emt 0:00:34]} (25. gxf3 $16 Rxe1+ 26. Rxe1) 25... Kd6 $1 $11 {[%emt 0:00:00]} 26. Nc4+ {[%emt 0:00:25]} (26. Nxf3 $11 Kd7 27. Ne5+ Kc8 28. d6 cxd6 29. Rxd6) 26... Kd7 $16 {[%emt 0:00:00]} 27. gxf3 {[%emt 0:00:37]} f4 {[%emt 0:00:00]} 28. Rxe8 {[%emt 0:01:12]} Rxe8 {[%emt 0:00:00]} 29. Re1 {[%emt 0:00:14]} Be3 {[%emt 0:00:00]} 30. Nxe3 {[%emt 0:01:28]} fxe3 {[%emt 0:00:00]} 31. Ke2 {[%emt 0:00:10]} Kd6 {[%emt 0:00:00]} ({Better is} 31... Rb8) 32. Rd1 $16 {[%emt 0:01:00]} Re5 {[%emt 0:00:00]} (32... Rb8 $16) 33. Rd4 {[%emt 0:00:27]} Rh5 {[%emt 0:00:00]} 34. h4 {[%emt 0:00:00]} ({Less strong is} 34. Kxe3 Rxh2 35. a4 Rh1 $14) 34... Re5 {[%emt 0:00:00]} 35. a3 {[%emt 0:00:33]} Kd7 {[%emt 0:00:00]} (35... h6 {might work better.} 36. a4 h5) 36. a4 $18 {[%emt 0:00:46]} Kd6 {[%emt 0:00:00]} 37. Rd3 $2 {[%emt 0:00:57]} (37. a5 $1 $18) 37... Rh5 $11 {[%emt 0:00:00]} 38. Rd4 $2 {[%emt 0:00:25]} (38. Rxe3 $11 Rxh4 39. Rc3 (39. Re4 Rh2+ 40. Ke3 Kxd5 $11)) 38... Re5 $18 {[%emt 0:00:00]} 39. a5 $1 {[%emt 0:01:38]} Kd7 {[%emt 0:00:00]} 40. Rd3 {[%emt 0:00:10]} Rh5 {[%emt 0:00:00]} 41. Rd4 {[%emt 0:33:34]} ({Don't do} 41. Rxe3 $6 Rxh4 42. Re6 Rxb4 $14) (41. Ra3 $16) 41... Re5 $18 {[%emt 0:18:24]} 42. Rg4 {[%emt 0:00:00]} Rxd5 {[%emt 0:00:00]} 43. Kxe3 {[%emt 0:00:00]} Rh5 {[%emt 0:00:00]} 44. Kf4 {[%emt 0:00:00]} Kd6 {[%emt 0:00:00]} (44... Rb5 $142) 45. Kg3 $1 $18 {[%emt 0:00:00]} Rb5 {[%emt 0:00:00]} 46. Rd4+ $1 {[%emt 0:00:00]} Ke6 {[%emt 0:00:30] [#]} 47. Rc4 $1 {[%emt 0:00:00]} Kd6 {[%emt 0:00:03]} 48. f4 {[%emt 0:00:00]} Rd5 {[%emt 0:01:56]} 49. Kg4 {[%emt 0:00:00]} h5+ {[%emt 0:00:12]} 50. Kf3 {[%emt 0:00:00]} Rd3+ {[%emt 0:00:05]} 51. Ke4 {[%emt 0:00:00]} Rh3 {[%emt 0:00:06]} 52. Kf5 {[%emt 0:00:00]} Rxh4 {[%emt 0:00:13] [#]} 53. Kg5 $2 {[%emt 0:00:00]} (53. Rd4+ $1 $18 Ke7 54. Re4+ Kd6 55. b5 axb5 56. a6) 53... Rg4+ $2 {[%emt 0:01:05][%mdl 8192]} (53... Rh1 $14) 54. Kxh5 $18 {[%emt 0:00:00]} Rg1 $2 {[%emt 0:00:13]} (54... Rg8 55. Rc1 Rg2) 55. Re4 $18 {[%emt 0:00:00]} Kd5 {[%emt 0:00:21]} 56. Re7 $2 {[%emt 0:00:09]} (56. Re5+ $18 Kc4 57. f5) 56... Kc4 $11 {[%emt 0:01:48]} 57. Re6 {[%emt 0:03:12]} Kxb4 {[%emt 0:04:03]} 58. Rxa6 {[%emt 0:00:02]} Kb5 {[%emt 0:00:25]} 59. Ra8 {[%emt 0:01:04]} Kc6 $2 {[%emt 0:00:21][%mdl 8192]} (59... Rh1+ $11 60. Kg5 Rg1+ 61. Kf6 c5) 60. a6 $18 {[%emt 0:02:11]} Kd7 $2 {[%emt 0:00:08]} (60... Rf1 $18) 61. f5 {[%emt 0:00:30]} Ke7 {[%emt 0:00:30]} 62. a7 {[%emt 0:00:49]} Ra1 {[%emt 0:00:05]} 63. Kg4 {[%emt 0:02:10]} Ra4+ {[%emt 0:03:54]} 64. Kf3 {[%emt 0:00:12]} Ra5 {[%emt 0:00:13]} 65. Ke4 {[%emt 0:00:07]} Kf7 {[%emt 0:01:47]} 66. Kd4 {[%emt 0:00:06]} Ke7 {[%emt 0:00:27]} 67. Kc4 {[%emt 0:00:15]} Ra1 {[%emt 0:00:45]} 68. Kb5 {[%emt 0:00:45]} Kd7 {[%emt 0:00:43]} 69. f6 {[%emt 0:00:27]} Rb1+ {[%emt 0:00:04]} 70. Kc4 {[%emt 0:00:10]} 1-0

[Event "21st Bangkok CC Open 2024"]
[Site "Bangkok"]
[Date "2024.04.15"]
[Round "3.6"]
[White "Das, Sayantan"]
[Black "Anustoop Biswas"]
[Result "1-0"]
[ECO "B12"]
[WhiteElo "2507"]
[BlackElo "2284"]
[Annotator "TA"]
[PlyCount "41"]
[EventDate "2024.04.13"]
[EventType "swiss"]
[EventCountry "THA"]
[SourceTitle "playchess.com"]
[Source "ChessBase"]
[SourceQuality "1"]
[TimeControl "40/5400+30:1800+30"]

{[%evp 9,41,8,10,11,6,-25,-8,-32,-40,-25,-36,-37,0,-47,-12,-26,14,14,1,2,48,42,58,69,391,371,420,369,366,371,368,373,839,814]} 1. e4 {[%emt 0:00:05]} c6 {[%emt 0:05:56]} 2. d4 {[%emt 0:00:45]} d5 {[%emt 0:00:03]} 3. e5 {[%emt 0:00:06]} Bf5 {[%emt 0:00:07]} 4. h4 {[%emt 0:00:34]} h5 {[%emt 0:00:02]} 5. Bd3 {[%emt 0:00:19]} Bxd3 {[%emt 0:00:03]} 6. Qxd3 {[%emt 0:00:07][%cal Oe5e6]} Qa5+ {[%emt 0:00:03]} 7. b4 {[%emt 0:00:47]} Qxb4+ {[%emt 0:21:33]} 8. Nd2 {[%emt 0:00:09][%cal Oe5e6,Bb1d2,Bd2f3,Bf3g5,Bg5e6][%mdl 32] The position is equal.} e6 {[%emt 0:04:42]} 9. Rb1 {[%emt 0:00:09]} Qe7 {[%emt 0:00:02]} 10. Ne2 {[%emt 0:00:14]} Nh6 {[%emt 0:00:59]} 11. c4 {[%emt 0:05:34]} (11. Nf3 $1 $11) 11... Qd7 {[%emt 0:10:05]} 12. Ng3 {[%emt 0:18:05]} g6 {[%emt 0:01:42]} 13. Nf3 {[%emt 0:11:34]} Na6 {[%emt 0:04:59][%cal Bb8a6,Ba6c7,Bc7d5][%mdl 32]} 14. O-O {[%emt 0:04:38]} Be7 {[%emt 0:01:28]} (14... dxc4 $11 15. Qxc4 b5) 15. Bg5 {[%emt 0:10:02]} Bxg5 {[%emt 0:06:23]} 16. Nxg5 {[%emt 0:00:12]} Rb8 $2 {[%emt 0:01:10][%mdl 8192] [#] This costs Black the game.} (16... Kf8 $14) 17. cxd5 $1 $18 {[%emt 0:01:32]} Nc7 {[%emt 0:02:08]} 18. d6 {[%emt 0:04:48][%cal Og3e4] Threatens to win with N3e4!} Nd5 {[%emt 0:00:04]} 19. N3e4 {[%emt 0:00:53] aiming for Nc5.} O-O {[%emt 0:00:44]} 20. Nc5 {[%emt 0:00:53]} Qc8 {[%emt 0:00:01] [#]} (20... Qe8 21. Nxb7 (21. Rxb7 Rxb7 22. Nxb7 Nf5 $18) 21... Nf5) 21. Ngxe6 $1 {[%emt 0:01:21][%mdl 512] Weighted Error Value: White=0.09 (flawless) /Black=0.48.  Loses game:     	---       	Black=1      Mistake:       	White=1     	Black=2      Inaccurate:     	White=1     	Black=3      OK:         	White=4     	Black=3      Best:        	White=2     	Black=3      Strong:       	White=1     	---} 1-0